fUSD/lending_fUSD_20251211
["ID","MTS","AMOUNT","RATE_DAILY","PERIOD"]
[398247044,1765457325719,-141.43969762,0.00015599,2]
[398247045,1765457328922,-108.56030238,0.00015599,2]
[398247046,1765457328944,-86.43969762,0.00015599,2]
[398247047,1765457363094,-239.3544589,0.00015599,2]
[398247056,1765457378691,-68.14392297,0.00015599,2]
[398247057,1765457378715,-153.84930277,0.00015599,2]
[398247058,1765457380571,-146.15069723,0.00015599,2]
[398247059,1765457380598,-13.68266875,0.00015599,2]
[398247060,1765457383866,-171.63326401,0.00015599,2]
[398247061,1765457386486,-64.68406724,0.00015599,2]
[398247062,1765457386509,-153.95216798,0.00015599,2]
[398247063,1765457387776,-41.04783202,0.00015599,2]
[398247064,1765457387799,-172.5403897,0.00015599,2]
[398247065,1765457390462,-27.4596103,0.00015599,2]
[398247066,1765457390483,-150.48027205,0.000156,2]
[398247067,1765457390510,-150.0,0.00015601,2]
[398247068,1765457390547,-32.8406772,0.00015625,2]
[398247069,1765457393728,-117.1593228,0.00015625,2]
[398247070,1765457393755,-83.71205058,0.00015636,2]
[398247071,1765457395321,-66.28794942,0.00015636,2]
[398247072,1765457395344,-172.17293515,0.00015639,2]
[398247074,1765457397872,-311.46861288,0.00015639,2]
[398247075,1765457400190,-253.79686806,0.00015639,2]
[398247076,1765457402015,-1000.0,0.00015639,2]
[398247077,1765457404973,-182.22736798,0.00015639,2]
[398247078,1765457406498,-232.50534437,0.00015639,2]
[398247079,1765457409887,-268.52767106,0.00015639,2]
[398247080,1765457411535,-330.3012005,0.00015639,2]
[398247081,1765457411563,-300.0,0.00015639,2]
[398247082,1765457411587,-12.08475293,0.00015639,2]
[398247083,1765457414286,-182.91524707,0.00015639,2]
[398247084,1765457414310,-36.54177145,0.00015639,2]
[398247085,1765457415807,-113.45822855,0.00015639,2]
[398247086,1765457415831,-82.92078557,0.00015644,2]
[398247087,1765457418122,-83.99712743,0.00015644,2]
[398247088,1765457418146,-150.0,0.00015647,2]
[398247089,1765457418168,-262.6434046,0.00015656,2]
[398247090,1765457420258,-300.0,0.00015656,2]
[398247091,1765457423108,-415.02405716,0.00015656,2]
[398247092,1765457424895,-22.33253824,0.00015656,2]
[398247093,1765457424917,-150.0,0.00015674,2]
[398247094,1765457424939,-161.03126216,0.00015678,2]
[398247096,1765457431414,-5.62873784,0.00015678,2]
[398247097,1765457431424,-150.0,0.00015681,2]
[398247098,1765457431433,-150.0,0.00015681,2]
[398247099,1765457431443,-150.0,0.00015696,2]
[398247100,1765457431452,-775.57267787,0.00015697,2]
[398247101,1765457431465,-424.42732213,0.00015697,2]
[398247102,1765457431475,-500.0,0.00015698,2]
[398247103,1765457431484,-473.6317424,0.00015698,2]
[398247104,1765457431495,-26.3682576,0.00015698,2]
[398247105,1765457431504,-649.63247821,0.00015698,2]
[398247106,1765457431513,-125.98189435,0.00015701,2]
[398247107,1765457431524,-174.01810565,0.00015701,2]
[398247108,1765457431534,-300.0,0.00015701,2]
[398247109,1765457431543,-401.87116792,0.00015702,2]
[398247110,1765457431554,-837.39883208,0.00015702,2]
[398247111,1765457431564,-3503.75534792,0.00015702,2]
[398247112,1765457431579,-7055.98465208,0.00015702,2]
[398247113,1765457431588,-150.0,0.00015706,2]
[398247114,1765457431602,-150.0,0.00015726,2]
[398247115,1765457431611,-150.0,0.00015732,2]
[398247116,1765457431621,-150.0,0.00015753,2]
[398247117,1765457431630,-200.0,0.00015755,2]
[398247118,1765457431639,-150.0,0.00015765,2]
[398247119,1765457431649,-9322.44771195,0.00015766,2]
[398247120,1765457431658,-150.0,0.00015771,2]
[398247121,1765457431667,-150.0,0.00015771,2]
[398247122,1765457431677,-150.0,0.00015791,2]
[398247123,1765457431686,-150.0,0.00015806,2]
[398247124,1765457431696,-150.0,0.00015817,2]
[398247126,1765457431705,-150.0,0.00015824,2]
[398247128,1765457431714,-150.0,0.00015839,2]
[398247130,1765457431724,-150.0,0.00015839,2]
[398247131,1765457431733,-1181.67256165,0.00015846,2]
[398247132,1765457431742,-376.85901258,0.00015851,2]
[398247133,1765457431751,-610.78,0.00015852,2]
[398247134,1765457431760,-200.0,0.00015852,2]
[398247135,1765457431770,-207.4,0.00015852,2]
[398247136,1765457431779,-215.0738,0.00015852,2]
[398247138,1765457431793,-223.0315306,0.00015852,2]
[398247139,1765457431802,-231.28369723,0.00015852,2]
[398247140,1765457431811,-239.84119403,0.00015852,2]
[398247141,1765457431820,-248.71531821,0.00015852,2]
[398247142,1765457431830,-257.91778498,0.00015852,2]
[398247143,1765457431839,-267.46074303,0.00015852,2]
[398247144,1765457431849,-211.75337976,0.00015852,2]
[398247145,1765457431858,-1811.0,0.00015852,2]
[398247146,1765457431867,-613.91086761,0.00015852,2]
[398247147,1765457431877,-284.78783801,0.00015852,2]
[398247148,1765457431886,-403.62475427,0.00015852,2]
[398247149,1765457431896,-1260.13682254,0.00015852,2]
[398247150,1765457431905,-151.0,0.00015852,2]
[398247151,1765457431915,-212.004326,0.00015852,2]
[398247152,1765457431925,-500.0,0.00015852,2]
[398247153,1765457431934,-500.0,0.00015852,2]
[398247154,1765457431945,-500.0,0.00015852,2]
[398247155,1765457431956,-500.0,0.00015852,2]
[398247156,1765457431966,-500.0,0.00015852,2]
[398247157,1765457431975,-500.0,0.00015852,2]
[398247158,1765457431988,-500.0,0.00015852,2]
[398247159,1765457431998,-500.0,0.00015852,2]
[398247160,1765457432007,-1000.0,0.00015852,2]
[398247161,1765457432017,-437.51777015,0.00015852,2]
[398247162,1765457432026,-578.20924308,0.00015852,2]
[398247163,1765457432036,-500.0,0.00015852,2]
[398247164,1765457432046,-1078.86550441,0.00015852,2]
[398247165,1765457432056,-500.0,0.00015852,2]
[398247166,1765457432066,-500.0,0.00015852,2]
[398247167,1765457432076,-250.0,0.00015852,2]
[398247168,1765457432086,-250.0,0.00015852,2]
[398247169,1765457432095,-250.0,0.00015852,2]
[398247170,1765457432105,-259.33088401,0.00015852,2]
[398247171,1765457432114,-151.0,0.00015852,2]
[398247172,1765457432123,-300.0,0.00015852,2]
[398247173,1765457432133,-150.0,0.00015862,2]
[398247174,1765457432143,-150.0,0.00015862,2]
[398247175,1765457432153,-150.0,0.00015868,2]
[398247176,1765457432163,-150.0,0.00015883,2]
[398247177,1765457432173,-150.0,0.00015887,2]
[398247178,1765457432185,-3086.29,0.00015897,2]
[398247179,1765457432194,-150.0,0.00015907,2]
[398247180,1765457432204,-200.0,0.00015913,2]
[398247181,1765457432214,-169.32452368,0.00015935,2]
[398247182,1765457432225,-150.0,0.00015938,2]
[398247183,1765457432235,-150.0,0.00015942,2]
[398247184,1765457432244,-533.43716832,0.00015944,2]
[398247185,1765457432253,-168.79759347,0.00015944,2]
[398247186,1765457432263,-196.39158515,0.00015944,2]
[398247187,1765457432273,-270971.6069708,0.00015945,2]
[398247188,1765457432282,-150.0,0.00015946,2]
[398247189,1765457432292,-150.0,0.00015952,2]
[398247190,1765457432301,-150.0,0.00015952,2]
[398247191,1765457432311,-156.48,0.0001597,2]
[398247192,1765457432320,-150.0,0.00015982,2]
[398247193,1765457432330,-150.0,0.00015982,2]
[398247194,1765457432339,-150.0,0.00015982,2]
[398247195,1765457432349,-150.0,0.00015982,2]
[398247196,1765457432359,-166.66,0.00015988,2]
[398247197,1765457432368,-150.0,0.00015997,2]
[398247198,1765457432379,-150.0,0.00016001,2]
[398247199,1765457432389,-15635.24408773,0.00016033,2]
[398247200,1765457432398,-9322.44771195,0.00016033,2]
[398247201,1765457432408,-150.0,0.00016042,2]
[398247202,1765457432417,-150.0,0.00016042,2]
[398247203,1765457432427,-150.0,0.00016053,2]
[398247204,1765457432436,-150.0,0.0001606,2]
[398247205,1765457432445,-150.0,0.0001607,2]
[398247206,1765457432455,-150.0,0.00016077,2]
[398247207,1765457432464,-280.77321226,0.00016077,2]
[398247208,1765457432474,-150.0,0.00016087,2]
[398247209,1765457432483,-150.0,0.00016096,2]
[398247210,1765457432492,-150.0,0.0001612,2]
[398247211,1765457432502,-610.78,0.00016126,2]
[398247212,1765457432512,-150.0,0.00016132,2]
[398247213,1765457432521,-150.0,0.00016132,2]
[398247214,1765457432530,-150.0,0.0001616,2]
[398247215,1765457432539,-150.0,0.00016172,2]
[398247216,1765457432548,-150.0,0.00016177,2]
[398247217,1765457432558,-150.0,0.00016179,2]
[398247218,1765457432567,-150.0,0.00016201,2]
[398247219,1765457432577,-150.0,0.0001621,2]
[398247220,1765457432586,-150.0,0.00016222,2]
[398247221,1765457432596,-150.0,0.00016222,2]
[398247222,1765457432605,-244.27122811,0.00016227,2]
[398247223,1765457432615,-150.0,0.00016238,2]
[398247224,1765457432624,-150.0,0.00016267,2]
[398247225,1765457432633,-150.0,0.00016267,2]
[398247226,1765457432642,-150.0,0.00016267,2]
[398247227,1765457432651,-150.0,0.00016267,2]
[398247228,1765457432661,-150.0,0.00016267,2]
[398247229,1765457432670,-150.0,0.00016297,2]
[398247230,1765457432679,-166.66,0.00016299,2]
[398247231,1765457432688,-15635.24408773,0.00016299,2]
[398247232,1765457432698,-9322.44771195,0.00016299,2]
[398247233,1765457432711,-150.0,0.00016312,2]
[398247234,1765457432721,-150.0,0.00016312,2]
[398247235,1765457432731,-597.4,0.0001632,2]
[398247236,1765457432743,-150.0,0.00016324,2]
[398247237,1765457432753,-150.0,0.00016333,2]
[398247238,1765457432769,-150.0,0.00016356,2]
[398247239,1765457432784,-150.0,0.00016357,2]
[398247240,1765457432794,-150.0,0.00016362,2]
[398247241,1765457432804,-150.0,0.00016374,2]
[398247242,1765457432814,-610.78,0.000164,2]
[398247243,1765457432823,-1811.0,0.000164,2]
[398247244,1765457432833,-150.0,0.00016402,2]
[398247245,1765457432843,-150.0,0.00016402,2]
[398247246,1765457432853,-150.0,0.00016415,2]
[398247247,1765457432862,-500.0,0.00016438,2]
[398247248,1765457432872,-500.0,0.00016438,2]
[398247249,1765457432883,-409.97255184,0.00016438,2]
[398247250,1765457432892,-8629.44,0.00016438,2]
[398247251,1765457432902,-594.0,0.00016438,2]
[398247252,1765457432912,-150.0,0.00016438,2]
[398247253,1765457432921,-150.0,0.00016447,2]
[398247254,1765457432932,-150.0,0.00016457,2]
[398247255,1765457432941,-150.0,0.00016465,2]
[398247256,1765457432951,-150.0,0.00016474,2]
[398247257,1765457432961,-150.0,0.00016481,2]
[398247258,1765457432972,-150.0,0.00016492,2]
[398247259,1765457432982,-150.0,0.00016492,2]
[398247260,1765457432992,-150.0,0.00016533,2]
[398247261,1765457433001,-150.0,0.00016537,2]
[398247262,1765457433012,-150.0,0.00016553,2]
[398247263,1765457433022,-150.0,0.00016553,2]
[398247264,1765457433032,-150.0,0.00016553,2]
[398247265,1765457433041,-150.0,0.00016553,2]
[398247266,1765457433051,-15635.24408773,0.00016566,2]
[398247267,1765457433061,-9322.44771195,0.00016566,2]
[398247268,1765457433070,-150.0,0.00016583,2]
[398247269,1765457433080,-150.0,0.00016583,2]
[398247270,1765457433089,-150.0,0.00016588,2]
[398247271,1765457433099,-150.0,0.00016592,2]
[398247272,1765457433110,-150.0,0.00016596,2]
[398247273,1765457433120,-150.0,0.00016628,2]
[398247274,1765457433130,-150.0,0.00016648,2]
[398247275,1765457433140,-150.0,0.00016651,2]
[398247276,1765457433149,-150.0,0.00016667,2]
[398247277,1765457433159,-150.0,0.00016673,2]
[398247278,1765457433168,-150.0,0.00016673,2]
[398247279,1765457433178,-610.78,0.00016674,2]
[398247280,1765457433188,-150.0,0.00016695,2]
[398247281,1765457433198,-150.0,0.00016695,2]
[398247282,1765457433207,-150.0,0.0001671,2]
[398247283,1765457433217,-150.0,0.00016718,2]
[398247284,1765457433226,-510.0,0.00016721,2]
[398247285,1765457433236,-150.0,0.00016728,2]
[398247286,1765457433246,-150.0,0.00016743,2]
[398247287,1765457433256,-500.0,0.00016747,2]
[398247288,1765457433266,-500.0,0.00016748,2]
[398247289,1765457433276,-500.0,0.00016749,2]
[398247290,1765457433287,-500.0,0.0001675,2]
[398247291,1765457433296,-500.0,0.00016751,2]
[398247292,1765457433305,-500.0,0.00016752,2]
[398247293,1765457433315,-500.0,0.00016753,2]
[398247294,1765457433324,-500.0,0.00016754,2]
[398247295,1765457433334,-527.42007,0.00016755,2]
[398247296,1765457433343,-150.0,0.00016763,2]
[398247297,1765457433353,-150.0,0.00016763,2]
[398247298,1765457433362,-150.0,0.00016769,2]
[398247299,1765457433372,-150.0,0.00016781,2]
[398247300,1765457433382,-554.37210072,0.000168,2]
[398247301,1765457433392,-1380.98566234,0.00016801,2]
[398247302,1765457433401,-150.0,0.00016802,2]
[398247303,1765457433411,-150.0,0.00016808,2]
[398247304,1765457433421,-150.0,0.00016828,2]
[398247305,1765457433430,-1025.87,0.00016832,2]
[398247306,1765457433440,-15635.24408773,0.00016833,2]
[398247307,1765457433450,-9322.44771195,0.00016833,2]
[398247308,1765457433460,-150.0,0.00016838,2]
[398247309,1765457433470,-150.0,0.00016853,2]
[398247310,1765457433479,-150.0,0.00016853,2]
[398247311,1765457433489,-150.0,0.0001686,2]
[398247312,1765457433498,-150.0,0.00016887,2]
[398247313,1765457433508,-150.0,0.00016895,2]
[398247314,1765457433517,-150.0,0.00016898,2]
[398247315,1765457433527,-10000.0,0.000169,2]
[398247316,1765457433536,-151.0,0.000169,2]
[398247317,1765457433546,-151.0,0.000169,2]
[398247318,1765457433556,-151.0,0.000169,2]
[398247319,1765457433566,-186367.9744,0.000169,2]
[398247320,1765457433575,-168.0,0.00016902,2]
[398247321,1765457433585,-150.0,0.00016909,2]
[398247322,1765457433595,-150.0,0.00016933,2]
[398247323,1765457433606,-212.36686481,0.00016943,2]
[398247324,1765457433616,-150.0,0.00016943,2]
[398247325,1765457433626,-150.0,0.00016943,2]
[398247326,1765457433636,-150.0,0.00016946,2]
[398247327,1765457433645,-610.78,0.00016948,2]
[398247328,1765457433655,-1811.0,0.00016948,2]
[398247329,1765457433665,-4862.0,0.00016959,2]
[398247330,1765457433676,-151.0,0.00016959,2]
[398247331,1765457433686,-151.0,0.00016959,2]
[398247332,1765457433695,-151.0,0.00016959,2]
[398247333,1765457433708,-151.0,0.00016959,2]
[398247334,1765457433723,-156.48,0.00016968,2]
[398247335,1765457433733,-150.0,0.00016988,2]
[398247336,1765457433744,-10000.0,0.0001699,2]
[398247337,1765457433756,-826.53832428,0.0001699,2]
[398247338,1765457433766,-150.0,0.00016992,2]
[398247339,1765457433775,-1025.87,0.00016999,2]
[398247340,1765457433785,-1025.87,0.00016999,2]
[398247341,1765457433794,-1025.87,0.00016999,2]
[398247342,1765457433803,-1025.87,0.00016999,2]
[398247343,1765457433813,-1025.87,0.00016999,2]
[398247344,1765457433824,-1025.87,0.00016999,2]
[398247345,1765457433833,-1025.87,0.00016999,2]
[398247346,1765457433842,-1025.87,0.00016999,2]
[398247347,1765457433852,-1025.87,0.00016999,2]
[398247348,1765457433861,-1025.87,0.00016999,2]
[398247349,1765457433871,-45331.49214192,0.00017,2]
[398247350,1765457433888,-47522.13020499,0.00017,2]
[398247351,1765457433900,-19211.69943296,0.00017,2]
[398247352,1765457433911,-281.8809584,0.00017,2]
[398247353,1765457433922,-1194.74874306,0.00017,2]
[398247354,1765457433933,-781.98694337,0.00017,2]
[398247355,1765457433945,-2623.40982985,0.00017,2]
[398247356,1765457433956,-2319.58557692,0.00017,2]
[398247357,1765457433968,-841.05406,0.00017,2]
[398247358,1765457433980,-799.21,0.00017,2]
[398247359,1765457437692,-150.0,0.00016605,2]
[398247360,1765457437706,-199752.44838256,0.00017,2]
[398247361,1765457437719,-419.075,0.00017,2]
[398247362,1765457437729,-1053.1260118,0.00017,2]
[398247363,1765457437741,-2473.65091241,0.00017,2]
[398247364,1765457437754,-4469.34245051,0.00017,2]
[398247365,1765457437765,-2802.14483546,0.00017,2]
[398247367,1765457437775,-1026.45071414,0.00017,2]
[398247369,1765457437787,-1000.0,0.00017,2]
[398247373,1765457438275,2116.00692375,0.00015499,2]
[398247374,1765457438298,5193.97267625,0.00015499,2]
[398247380,1765457441854,-7358.91207393,0.00017,2]
[398247381,1765457441910,-4219.16991526,0.00017,2]
[398247382,1765457441968,-196481.59740561,0.00017,2]
[398247383,1765457442023,-24271.47300657,0.00017,2]
[398247384,1765457442079,-8040.49557726,0.00017,2]
[398247385,1765457442136,-826.28059818,0.00017,2]
[398247392,1765457443610,-1.7e-07,0.00017,2]
[398247393,1765457443622,-262.79915713,0.00017,2]
[398247394,1765457443633,-704.022204,0.00017,2]
[398247395,1765457443644,-11053.06981595,0.00017,2]
[398247396,1765457443656,-1239.43669989,0.00017,2]
[398247397,1765457443668,-1988.8604776,0.00017,2]
[398247398,1765457443679,-1137.79536712,0.00017,2]
[398247399,1765457443691,-4493.90578501,0.00017,2]
[398247400,1765457443702,-248293.28643087,0.00017,2]
[398247401,1765457443713,-619.94646908,0.00017,2]
[398247402,1765457443725,-735.24608787,0.00017,2]
[398247403,1765457443736,-454505.69278856,0.00017,2]
[398247404,1765457443766,-531.75576176,0.00017,2]
[398247405,1765457443778,-2979.06507186,0.00017,2]
[398247406,1765457445472,-23916.42488506,0.00017,2]
[398247407,1765457445483,-1413.85592306,0.00017,2]
[398247408,1765457445494,-2160.37962884,0.00017,2]
[398247410,1765457445537,-903.94749291,0.00017,2]
[398247411,1765457445548,-3607.02658723,0.00017,2]
[398247412,1765457445584,-198574.43104755,0.00017,2]
[398247413,1765457445595,-271.0542,0.00017,2]
[398247414,1765457445641,-53045.11791045,0.00017,2]
[398247415,1765457445698,-466.81370507,0.00017,2]
[398247428,1765457481936,1000.0,0.00015499,2]
[398247429,1765457487293,160.70566298,0.00015598,2]
[398247431,1765457517359,500.0,0.00015598,2]
[398247432,1765457517605,500.0,0.00015598,2]
[398247433,1765457524033,800.0,0.00015,5]
[398247434,1765457593434,-578.20924308,0.00015896,2]
[398247436,1765457603385,500.0,0.00015525,2]
[398247437,1765457636665,8343.59151384,0.00015844,2]
[398247438,1765457636696,10000.01,0.00015844,2]
[398247439,1765457636726,10000.01,0.00015844,2]
[398247443,1765457636992,10000.01,0.00015844,2]
[398247444,1765457637019,10000.01,0.00015844,2]
[398247446,1765457637045,10000.01,0.00015844,2]
[398247447,1765457637072,10000.01,0.00015844,2]
[398247448,1765457637099,10000.01,0.00015844,2]
[398247449,1765457637127,10000.01,0.00015844,2]
[398247450,1765457637155,10000.01,0.00015844,2]
[398247451,1765457646515,-300.0,0.00015843,2]
[398247452,1765457646543,-300.0,0.00015843,2]
[398247453,1765457673732,-611.95536604,0.00015843,2]
[398247454,1765457673760,-246.07083917,0.00015843,2]
[398247455,1765457673791,-191.22469475,0.00015843,2]
[398247456,1765457673825,-465.36658526,0.00015843,2]
[398247457,1765457693243,-270.37087198,0.00015843,2]
[398247458,1765457693360,-726.9424216,0.00015844,2]
[398247459,1765457697101,-10000.01,0.00015844,2]
[398247460,1765457697196,-10000.01,0.00015844,2]
[398247461,1765457705653,-300.0,0.00015843,2]
[398247462,1765457705686,-300.0,0.00015843,2]
[398247463,1765457705717,-1200.0,0.00015843,2]
[398247464,1765457705787,-6400.01,0.00015844,2]
[398247465,1765457705814,-10000.01,0.00015844,2]
[398247466,1765457714747,769.935211,0.00015764,2]
[398247475,1765457808573,1450.09279463,0.00015744,2]
[398247478,1765457823044,1000.0,0.00025,120]
[398247479,1765457858619,300.0,0.00015616,2]
[398247480,1765457878996,200.0,0.00015342,2]
[398247481,1765457914850,578.68,7.885e-05,2]
[398247482,1765457915057,578.68,8.3e-05,2]
[398247483,1765457915269,578.68,8.715e-05,2]
[398247484,1765457915456,578.68,9.13e-05,2]
[398247485,1765457915671,578.68,9.545e-05,2]
[398247486,1765457915870,578.68,9.96e-05,2]
[398247487,1765457916087,578.68,0.00010375,2]
[398247488,1765457916300,578.68,0.0001079,2]
[398247489,1765457916514,578.68,0.00011205,2]
[398247490,1765457916711,578.68,0.0001162,2]
[398247491,1765457916918,578.68,0.00012035,2]
[398247492,1765457917119,578.68,0.0001245,2]
[398247493,1765457917312,335.82199437,0.00012865,2]
[398247494,1765457917343,242.85800563,0.00012865,2]
[398247495,1765457917530,578.68,0.0001328,2]
[398247496,1765457917747,578.68,0.00013695,2]
[398247497,1765457917960,578.68,0.0001411,2]
[398247498,1765457918169,578.68,0.00014525,2]
[398247499,1765457918385,578.68,0.0001494,2]
[398247500,1765457918575,578.68,0.00015355,2]
[398247501,1765457918998,578.68,0.0001577,2]
[398247502,1765457948113,-973.80791683,0.00015796,2]
[398247503,1765458003881,1542.0,0.00015697,2]
[398247504,1765458033430,4110.60722869,0.00015744,2]
[398247505,1765458064299,250.0,0.0001579,2]
[398247506,1765458075760,4097.40277131,0.00015744,2]
[398247507,1765458075783,8533.65011419,0.00015744,2]
[398247508,1765458076419,-26.19208317,0.00015796,2]
[398247509,1765458076441,-146.48278503,0.00015796,2]
[398247510,1765458080364,-151.0,0.00015796,2]
[398247511,1765458080392,-21.21759235,0.00015796,2]
[398247512,1765458082551,-312.79963433,0.00015796,2]
[398247513,1765458082898,538.02,0.0001579,2]
[398247514,1765458088840,928.33988581,0.00015745,2]
[398247515,1765458088863,340.4913095,0.00015745,2]
[398247516,1765458096568,3067.721,0.00015527,2]
[398247517,1765458096628,170.359,0.00015527,2]
[398247518,1765458138562,1000.0,0.00015744,2]
[398247519,1765458169085,1865.8927,0.00015744,2]
[398247520,1765458192634,1500.0,0.00015636,2]
[398247521,1765458213312,-53.34893692,0.00015796,2]
[398247522,1765458214565,258.24410907,0.00015796,2]
[398247523,1765458215609,172.16273938,0.00015796,2]
[398247524,1765458216598,151.0,0.00015796,2]
[398247525,1765458217535,193.32547876,0.00015796,2]
[398247526,1765458346656,7492.0704,0.00015744,2]
[398247527,1765458358189,300.0,0.00015616,2]
[398247528,1765458369183,1110.22729587,0.00015745,2]
[398247529,1765458377479,151.0,0.00015796,2]
[398247530,1765458378380,65.28210308,0.00015796,2]
[398247531,1765458378412,168.06213384,0.00015796,2]
[398247532,1765458387916,5109.02,0.00015286,2]
[398247533,1765458397345,300.0,0.00015753,2]
[398247534,1765458419045,300.0,0.00015753,2]
[398247535,1765458419636,3699.54650583,0.00015745,2]
[398247536,1765458421227,423.38136033,0.00015286,2]
[398247537,1765458421251,6560.59863967,0.00015286,2]
[398247539,1765458449609,300.0,0.00015781,2]
[398247540,1765458468358,281.2726,0.00015744,2]
[398247541,1765458480617,1000.0,0.00015744,2]
[398247542,1765458511020,1858.13876033,0.00015744,2]
[398247543,1765458511043,369.88483967,0.00015744,2]
[398247544,1765458517855,10000.01,0.00015744,2]
[398247545,1765458517878,3513.8875,0.00015744,2]
[398247546,1765458523511,1666.8688,0.00015744,2]
[398247548,1765458541936,1000.0,0.00014999,3]
[398247549,1765458585939,3819.2537,0.00015745,2]
[398247550,1765458585965,7548.69389695,0.00015745,2]
[398247551,1765458628294,999.0,0.00015126,3]
[398247564,1765458631731,-544.26591629,0.00015801,2]
[398247565,1765458631741,-152.36,0.00015801,2]
[398247566,1765458631750,-250.0,0.00015801,2]
[398247567,1765458631759,-152.91,0.00015801,2]
[398247568,1765458631769,-151.63,0.00015801,2]
[398247569,1765458631778,-150.02,0.00015801,2]
[398247570,1765458631787,-150.29,0.00015801,2]
[398247571,1765458631797,-301.21355674,0.00015801,2]
[398247572,1765458631806,-150.97,0.00015802,2]
[398247573,1765458631816,-151.37,0.00015802,2]
[398247574,1765458631826,-151.51,0.00015802,2]
[398247575,1765458631835,-151.97,0.00015803,2]
[398247576,1765458631844,-152.36,0.00015815,2]
[398247577,1765458631853,-1200.0,0.00015832,2]
[398247578,1765458631862,-1200.0,0.00015833,2]
[398247579,1765458631871,-300.0,0.00015833,2]
[398247580,1765458631881,-300.0,0.00015833,2]
[398247581,1765458631890,-300.0,0.00015834,2]
[398247583,1765458631900,-300.0,0.00015835,2]
[398247584,1765458631909,-1411.0,0.00015835,2]
[398247585,1765458631918,-1200.56835672,0.00015835,2]
[398247586,1765458631934,-166.43164328,0.00015835,2]
[398247587,1765458631944,-500.0,0.00015835,2]
[398247588,1765458631953,-500.0,0.00015835,2]
[398247590,1765458631963,-370.24103608,0.00015835,2]
[398247592,1765458631976,-129.75896392,0.00015835,2]
[398247594,1765458631986,-500.0,0.00015835,2]
[398247596,1765458631995,-500.0,0.00015835,2]
[398247598,1765458632004,-500.0,0.00015835,2]
[398247600,1765458632013,-500.0,0.00015835,2]
[398247602,1765458632023,-500.0,0.00015835,2]
[398247604,1765458632033,-61.03197608,0.00015835,2]
[398247606,1765458632044,-438.96802392,0.00015835,2]
[398247608,1765458632053,-500.0,0.00015835,2]
[398247610,1765458632062,-500.0,0.00015835,2]
[398247612,1765458632071,-151.0,0.00015835,2]
[398247613,1765458632081,-343.5,0.00015835,2]
[398247614,1765458632090,-151.0,0.00015841,2]
[398247615,1765458632099,-500.0,0.00015843,2]
[398247616,1765458632108,-1000.0,0.00015843,2]
[398247617,1765458632118,-500.0,0.00015843,2]
[398247618,1765458632128,-486.61410852,0.00015843,2]
[398247619,1765458632138,-266.53234564,0.00015844,2]
[398247620,1765458632149,-1538.8427499,0.00015844,2]
[398247622,1765458637706,-21085.03360979,0.00015844,2]
[398247623,1765458637816,-1549.3014806,0.00015844,2]
[398247624,1765458637826,-878.59516704,0.00015844,2]
[398247625,1765458637837,-506.24704117,0.00015844,2]
[398247626,1765458637847,-1323.45921772,0.00015844,2]
[398247627,1765458637858,-27449.95832474,0.00015844,2]
[398247628,1765458637931,-2169.18029496,0.00015844,2]
[398247633,1765458639723,-1098.53291601,0.00015844,2]
[398247634,1765458639780,-430.4257349,0.00015844,2]